Cogmind - Beta 16.1 *** ADVENTURER MODE // 2026.03.29 @ 05:30:00 Player: Sharded of Serpulo Result: Self-destructed Performance ------------- Evolutions (1) 500 Regions Visited (2) 400 Robots Destroyed (10) 50 Value Destroyed (278) 278 Prototype IDs (3) 60 Alien Tech Used (0) 0 Bonus (0) 0 TOTAL SCORE: 1288 Bonus ------- None Cogmind --------- Core Integrity 244/400 Matter 280/300 Energy 100/100 System Corruption 0% Temperature Cool (0) Movement Core (350) Ox6 Location -9/Materials Parts ------- > --- POWER (1) -------- (None) > --- PROPULSION (4) --- (None) > --- UTILITY (2) ------ Large Storage Unit > --- WEAPON (2) ------- (None) > --- INVENTORY (15) --- Ion Engine Hover Unit Hover Unit Hover Unit Peak State ------------ > --- POWER ------------ Ion Engine > --- PROPULSION ------- Light Treads Light Treads > --- UTILITY ---------- Small Storage Unit > --- WEAPON ----------- EM Pulse Gun EM Pulse Gun > --- INVENTORY -------- Ion Engine Assault Rifle [Rating: 6] Favorites ----------- Power Ion Engine Engine Ion Engine Propulsion Light Treads Treads Light Treads Utility Small Storage Unit Storage Small Storage Unit Weapon EM Pulse Gun Energy Gun EM Pulse Gun Ballistic Gun Assault Rifle Build | -11 -10 -9 ------- Run | Yrd Mat Mat Slots Evolved 2 | . . 2 Power . | . . . Propulsion 2 | . . 2 Utility . | . . . Weapon . | . . . Parts Attached 9 | 6 2 1 Power 2 | 1 1 . Engine 2 | 1 1 . Core . | . . . Reactor . | . . . Propulsion 2 | 2 . . Treads 2 | 2 . . Leg . | . . . Wheel . | . . . Hover . | . . . Flight . | . . . Utility 2 | 1 1 . Device . | . . . Storage 2 | 1 1 . Processor . | . . . Hackware . | . . . Protection . | . . . Artifact . | . . . Weapon 3 | 2 . 1 Energy Gun 2 | 2 . . Energy Cannon . | . . . Ballistic Gun 1 | . . 1 Ballistic Cannon . | . . . Launcher . | . . . Special Weapon . | . . . Impact Weapon . | . . . Slashing Weapon . | . . . Piercing Weapon . | . . . Special Melee Weapon . | . . . Unidentified Prototypes . | . . . Parts Lost 5 | . . 5 Power 1 | . . 1 Propulsion 1 | . . 1 Utility . | . . . Weapon 3 | . . 3 Highest Loss Streak 3 | . . 3 To Critical Strikes . | . . . Average Backups 3 | 2 3 4 Power . | . 1 1 Propulsion 1 | . 1 3 Utility . | . . . Weapon . | 1 1 . Tool/Special . | . . . Unused Backups 3 | . . 3 Power . | . . . Propulsion 3 | . . 3 Utility . | . . . Weapon . | . . . Tool/Special . | . . . Average Slot Usage (%) 76 | . 84 58 Engine 12 | . 13 11 Treads 25 | . 28 18 Storage 13 | . 14 11 Energy Gun 21 | . 28 8 Ballistic Gun 3 | . . 9 Peak Build Rating 6 | 6 6 6 Average Rating 5 | 3 5 5 On Entrance 4 | . 6 6 Avg Prop Armor Cover (%) . | . . . Naked Turns . | . . . Heaviest Build 29 | 14 29 29 Greatest Support 40 | 40 40 40 Greatest Overweight (x) 1 | . . 1 Average Overweight (x) . | . . . Largest Inventory Capacity 15 | 8 15 15 Average Capacity 10 | 6 9 15 Most Carried 6 | 5 6 5 Average Carried 3 | 2 3 4 Final Capacity 15 | 8 15 15 Final Carried 5 | 2 5 4 Class Distribution -------------------- 100% | Mutant Dominant Class ---------------- Mutant | -10/Materials Mutant | -9/Materials Resources | -11 -10 -9 ----------- Run | Yrd Mat Mat Matter Collected 330 | 222 48 60 Remotely . | . . . Salvage Created 423 | . 268 155 Parts 26 | . 20 6 Haulers Intercepted 1 | . 1 . Recyclers Shooed . | . . . Parts Field Recycled . | . . . Retrieved Matter . | . . . Parts Self-Destructed . | . . . Prevented . | . . . Parts Restored . | . . . Kills | -11 -10 -9 ------- Run | Yrd Mat Mat Combat Hostiles Destroyed 8 | . 5 3 Guns 6 | . 4 2 AOE 1 | . . 1 Classes Destroyed 5 | . 4 1 Hauler 1 | . 1 . Watcher 1 | . 1 . Swarmer 2 | . 2 . Grunt 5 | . 3 2 Duelist 1 | . . 1 Best Kill Streak 3 | . 3 1 Combat Bots Only 3 | . 3 1 Max Kills in Single Turn 1 | . 1 1 Gunslinging . | . . . Exploded 1 | . . 1 Melee . | . . . Uniques/NPCs Destroyed . | . . . Combat | -11 -10 -9 -------- Run | Yrd Mat Mat Hostile Shots Fired 98 | . 37 61 Missed 29 | . 14 15 Hits 69 | . 23 46 Melee 8 | . . 8 Projectile 61 | . 23 38 Critical Strikes 3 | . . 3 Damage Taken 708 | . 175 533 Core 206 | . 50 156 Absorbed by Shields . | . . . Ignored by Resistances 213 | . 54 159 Regen/Repaired (Parts) 21 | . 21 . Core Remaining (%) 90 | 100 80 . Volleys Fired 45 | . 19 26 Largest 2 | . 2 2 Hottest 80 | . 80 60 Shots Fired 76 | . 38 38 Gun 76 | . 38 38 Cannon . | . . . Launcher . | . . . Special . | . . . Kinetic 26 | . . 26 Thermal . | . . . Explosive . | . . . Electromagnetic 50 | . 38 12 Robot Hit Streak 14 | . 8 14 Robot Miss Streak 4 | . 4 2 Penetration Max . | . . . Secondary Targets 1 | . 1 . Max Gunslinging Chain 1 | . 1 . Shots Hit Robots 60 | . 29 31 Core Hits 18 | . 11 7 Critical Kills . | . . . Critical Parts Destroyed . | . . . Critical Strikes 2 | . 2 . Corrupt 2 | . 2 . Melee Attacks . | . . . Impact . | . . . Slashing . | . . . Piercing . | . . . Sneak Attacks . | . . . Combat Hostiles . | . . . Follow-up Attacks . | . . . Damage Inflicted 862 | . 419 443 Guns 791 | . 392 399 Cannons . | . . . Explosions 67 | . 27 40 Melee . | . . . Ramming 4 | . . 4 Kinetic 254 | . . 254 Thermal 67 | . 27 40 Explosive . | . . . Electromagnetic 537 | . 392 145 Impact . | . . . Slashing . | . . . Piercing . | . . . Highest Corruption . | . . . Average Corruption . | . . . Corruption Purged . | . . . Corruption Blocked . | . . . Overload Shots . | . . . Overflow Damage . | . . . Projectiles . | . . . Explosions . | . . . Melee . | . . . Knockbacks . | . . . Impact . | . . . Kinetic . | . . . Secondary . | . . . Self-Inflicted Damage . | . . . Shots . | . . . Rammed 3 | . . 3 Targets Rammed 3 | . . 3 Kicked . | . . . Crushed . | . . . Highest Temperature 174 | . 174 9 Average Temperature 62 | . 68 6 Received Heat Transfer 300 | . 72 228 Siege Activations . | . . . Martial Activations . | . . . Shielding Activations . | . . . Robots Disrupted . | . . . Combat Hostiles . | . . . Robots Corrupted 1 | . 1 . Combat Hostiles 1 | . 1 . Parts Fried 4 | . 3 1 Impact Corruptions . | . . . Robots Melted . | . . . Combat Hostiles . | . . . Parts Melted . | . . . Heat Transferred 100 | . 50 50 Parts Sabotaged . | . . . Parts Stolen . | . . . Parts Stripped . | . . . Power Chain Reactions 2 | . 1 1 Alert | -11 -10 -9 ------- Run | Yrd Mat Mat Maximum Alert Level . | . . . Low Security (%) 100 | 100 100 100 Level 1 . | . . . Level 2 . | . . . Level 3 . | . . . Level 4 . | . . . Level 5 . | . . . High Security . | . . . Max Security . | . . . Peak Influence 74 | . 74 41 Initial 22 | . . 22 Average 19 | . 24 18 Influence Increases 253 | . 164 89 Destroy 0b10 Robot/C 160 | . 100 60 Destroy 0b10 Robot/NC 10 | . 10 . Destroy Leader 44 | . 24 20 Successful Hack 30 | . 30 . Disable Machine 9 | . . 9 Influence Decreases 253 | . 102 151 Entered New Map 40 | . . 40 Time Decay 173 | . 102 71 Lost Part 40 | . . 40 Squads Dispatched 1 | . . 1 Investigation . | . . . Extermination . | . . . Reinforcement 1 | . . 1 Assault . | . . . Garrison . | . . . Intercept . | . . . Searches Triggered . | . . . Construction Impeded . | . . . Haulers Reinforced . | . . . Active Scanning Responses . | . . . Cargo Convoy Interrupts . | . . . Stealth | -11 -10 -9 --------- Run | Yrd Mat Mat Distress Signals 2 | . 1 1 Communications Jammed . | . . . Distress Signals . | . . . Times Spotted 15 | . 8 7 Peak Tracking Total 5 | . 5 3 Tactical Retreats . | . . . Traps | -11 -10 -9 ------- Run | Yrd Mat Mat Traps Triggered 1 | . 1 . Indirectly . | . . . Trap Hack Attempts . | . . . Triggered . | . . . Disarmed . | . . . Reprogrammed . | . . . Reused . | . . . Traps Extracted . | . . . Installed . | . . . Triggered . | . . . Machines | -11 -10 -9 ---------- Run | Yrd Mat Mat Machines Disabled 2 | . 1 1 Max in Single Turn 1 | . 1 1 Machines Repaired . | . . . Machines Dismantled . | . . . Machines Sabotaged . | . . . Overloaded Fab Kills . | . . . Hacking | -11 -10 -9 --------- Run | Yrd Mat Mat Machines Accessed 3 | . 3 . Terminals 2 | . 2 . Fabricators . | . . . Repair Stations 1 | . 1 . Recycling Units . | . . . Scanalyzers . | . . . Garrison Access . | . . . Total Hacks 7 | . 7 . Successful 5 | . 5 . Failed 2 | . 2 . Catastrophic . | . . . Database Lockouts . | . . . Manual 2 | . 2 . Terminals 4 | . 4 . Fabricators . | . . . Repair Stations 3 | . 3 . Recycling Units . | . . . Scanalyzers . | . . . Garrison Access . | . . . Terminal Hacks 3 | . 3 . Prototype ID Bank 1 | . 1 . Level Access Points 1 | . 1 . Zone Layout 1 | . 1 . Fabricator Hacks . | . . . Repair Station Hacks 2 | . 2 . Scan Component 1 | . 1 . Repair 1 | . 1 . Recycling Unit Hacks . | . . . Scanalyzer . | . . . Garrison Access Hacks . | . . . Unauthorized Hacks . | . . . Terminals . | . . . Fabricators . | . . . Repair Stations . | . . . Recycling Units . | . . . Scanalyzers . | . . . Garrison Access . | . . . Data Cores Recovered . | . . . Used . | . . . Hacking Detections 3 | . 3 . Full Trace Events . | . . . Feedback Events . | . . . Feedback Blocked . | . . . Robot Schematics Acquired . | . . . Robots Built . | . . . Authchips . | . . . Time . | . . . Total Robot Build Rating . | . . . Part Schematics Acquired . | . . . Parts Built . | . . . Authchips . | . . . Time . | . . . Total Part Build Rating . | . . . Part Studies Acquired . | . . . Parts Repaired 1 | . 1 . Time 13 | . 13 . Parts Recycled . | . . . Recycled Matter . | . . . Retrieved Matter . | . . . Retrieved Components . | . . . Parts Scanalyzed . | . . . Part Schematics Acquired . | . . . Parts Damaged . | . . . Bothacking | -11 -10 -9 ------------ Run | Yrd Mat Mat Used RIF Installer . | . . . Robots Hacked . | . . . Non-combat . | . . . Combat . | . . . Robot Hacks Applied . | . . . Relay Couplers Released . | . . . Fabnet Peak Effective % . | . . . Robots Rewired . | . . . Allies Hacked . | . . . Hacks Repelled . | . . . Allies | -11 -10 -9 -------- Run | Yrd Mat Mat Total Allies . | . . . Largest Group . | . . . Highest-Rated Group . | . . . Highest-Rated Ally . | . . . Total Orders . | . . . Ally Attacks . | . . . Total Damage . | . . . Kills . | . . . Allies Corrupted . | . . . Allies Melted . | . . . Intel | -11 -10 -9 ------- Run | Yrd Mat Mat Active Infowar (turns) . | . . . Robot Analysis Total . | . . . Derelict Logs Recovered . | . . . Drone Launches . | . . . Drone Recoveries . | . . . Exploration | -11 -10 -9 ------------- Run | Yrd Mat Mat Turns Passed 593 | 85 345 163 Spaces Moved 270 | 52 167 51 Core 11 | 11 . . Treads 259 | 41 167 51 Legs . | . . . Wheels . | . . . Hover . | . . . Flight . | . . . Fastest Speed 50 | 50 160 160 Average Speed 156 | 136 160 164 Slowest Speed 240 | 160 160 240 Overloaded Moves . | . . . Propulsion Burnouts . | . . . Robots Hopped . | . . . Potential Cave-ins . | . . . Cave-ins Triggered . | . . . Exploration Rate (%) 19 | 3 41 14 Regions Visited 2 Branch Regions . Pre-discovered Areas . | . . . Known Exits Taken 1 | . 1 . Unknown Exits Taken 1 | 1 . . Scrap Searched . | . . . Spaces Dug . | . . . Terrain Destroyed . | . . . Melee . | . . . Projectile . | . . . AOE . | . . . Terrain Rammed . | . . . Walls Destroyed . | . . . Machines Disabled . | . . . Actions | -11 -10 -9 --------- Run | Yrd Mat Mat Total 357 | 66 207 84 Wait 14 | 1 13 . Move 268 | 51 166 51 Hop . | . . . Pick Up 15 | 8 6 1 Fast Attach . | . . . Attach 9 | 6 1 2 Detach . | . . . Swap 2 | . 1 1 Drop 1 | . 1 . Fire 45 | . 19 26 Melee . | . . . Ram 2 | . . 2 Kick . | . . . Crush 1 | . . 1 Escape Stasis . | . . . Rewire . | . . . Trap . | . . . Miscellaneous . | . . . Route ------- -11/Scrapyard -10/Materials (discovered 4 exits: *Mat x3 / [*Min]) -9/Materials History --------- Turn | Location | Event 3 | -11/Scrapyard | Discovered new exit (range 16) 86 | -11/Scrapyard | Entered Materials 245 | -10/Materials | Discovered new exit (range 14) 316 | -10/Materials | Build established: Mutant 334 | -10/Materials | Repaired Hover Unit 407 | -10/Materials | Discovered new exit (range 16) 410 | -10/Materials | Identified exit to Materials 431 | -10/Materials | Entered another Materials area 431 | -9/Materials | Evolved 2 slots: Propulsion x2 594 | -9/Materials | Self-destructed Last Messages --------------- Lgt. Treads severed. R-06 Scavenger collects Lgt. Treads. Melee Analysis Suite fried. L-31 Rogue destroyed. K-01 Serf collects debris. Acquired 60 matter. K-01 Serf collects debris. Assault Rifle destroyed. Slammed into G-34 Mercenary. Lgt. Treads destroyed. K-01 Serf collects debris. Slammed into G-34 Mercenary. R-06 Scavenger collects Imp. Aluminum Leg. R-06 Scavenger collects Core Shielding. Ion Engine destroyed. Slammed into G-34 Mercenary. Destabilizing: Core damaged (-16). G-34 Mercenary destroyed. K-01 Serf collects debris. R-06 Scavenger collects Imp. Ion Engine. Map ----- +----------------------------------------------------+ | ??????????????????????????????????????????# #????? | | ??????????????????????????????????????????# #????? | | ??????????????????????????????????????#####+#####? | | ??????????????????????????????????????# #? | | ??????????????????????????????????????# "" " #? | | ??????????????????????????????????????# """ T #? | | ??????????????????????????????????????# """ " #? | | ??????????????????????????????????????# #? | | ??????????????????????????########????# #? | | ??????????????????????????# #????# ! [ #? | | ??????????????????????????# """ ]#????# #? | | ??????????????????????????# """ #?#######+####### | | ??????????????????????????# """ ### | | ??????????????????????????# =+ | | ??????????????????????????# """!%### | | ????????????????????####??# """ *#?# % | | ????????????????##### ??# """ #?# | | ????????????????? ?# #?# | | ?????????????????? ?# """ !#?# ### | | ??????????????????? Y ?# """ #?# #?#+####### | | ????????????????????# ?# """ #?# #?????????? | | ?????????????????????# ?# #?# #?????????? | | ?????????????????????# u##r####### #????????? | | ?????????????????????# #????????? | | ?????????????????????# k T +????????? | | ?????????????????????# @g #????????? | | ?????????????????????##!%[#+####### #????????? | | ??????????????????????# a # ??????##?###????????? | | ??????????????????????# # ????????????????????? | | ??????????????????????# # ????????????????????? | | ??????????????????????# # ????????????????????? | | ??????????????????????# # ????????????????????? | | ??????????????????????# #= ????????????????????? | | ??????????????????????# # ???????????????????? | | ??????????????????????# ? ???????????????????? | | ??????????????????????# ? ???????????????????? | | ??????????????????????# ? "???????????????????? | | ??????????????????????+ ? "???????????????????? | | ??????????????????????# ? ????????????????????? | | ??????????????????????# ???????????????????????? | | ??????????????????????? ???????????????????????? | | ?????????????????????????????????????????????????? | | ?????????????????????????????????????????????????? | | ?????????????????????????????????????????????????? | | ?????????????????????????????????????????????????? | | ?????????????????????????????????????????????????? | | ?????????????????????????????????????????????????? | | ?????????????????????????????????????????????????? | | ?????????????????????????????????????????????????? | | ?????????????????????????????????????????????????? | +----------------------------------------------------+ Best States ------------- Heat Dissipation 28 Energy Generation 10 Energy Capacity 250 Matter Stores 300 Matter Capacity 300 Sight Range 16 Terrain Scan Density 10 Resistance: KI 20 Resistance: TH 20 Resistance: EX 20 Resistance: EM 20 Resistance: I 20 Resistance: S 20 Resistance: P 20 Evasion (%) 50 Recoil Reduction 2 Offensive Hacking 10 Item Schematics ----------------- None Robot Schematics ------------------ None Fabricated ------------ Nothing Repaired ---------- Hover Unit | 30% | -10/Materials Studied --------- None Alien Tech Used ----------------- None Achievements -------------- None Challenges ------------ None Game ------ Seed LightningSmallWings Manual? 0 Play Time 00:07:03 Cumulative 27.7 hours Start 2026.03.29 @ 05:24:41 End 2026.03.29 @ 05:30:00 Sessions 1 Manual Loads 0 Difficulty Adventurer Special Mode None Game No. 36 Rogue 0 Adventurer 36 Explorer 0 Win Type - Total 0 Types 0/0/0/0/0/0/0/0/0/0 Lore% 13 Gallery% 23 Achievement% 22 Wizard Run 0 Options --------- Layout 1 ASCII 0 Keyboard 0 Movement Mouse Keybinds 1 Fullscreen 1 Font 32/Tamsyn Map View 50x35 Zoom Use 0% Tactical HUD 0 Map Filters NONE Filters NONE Steam 1 RUN: e01fa02f-dc41-40ea-ac79-323922b82ebf